lending/lending_fUSD_20241025
["ID","MTS","AMOUNT","RATE_DAILY","PERIOD"]
[340828757,1729889232178,-500.0,0.00060899,120]
[340828758,1729889232199,-639.74,0.00060899,120]
[340828759,1729889232219,-500.0,0.00060899,120]
[340828760,1729889232240,-500.0,0.00060899,120]
[340828761,1729889232260,-500.0,0.00060899,120]
[340828762,1729889232280,-211.33929593,0.00060899,32]
[340828763,1729889232300,-315.27808748,0.00060899,2]
[340828764,1729889232320,-508.09531073,0.00060899,120]
[340828765,1729889232342,-500.0,0.00060899,120]
[340828766,1729889232362,-512.15589394,0.00060899,120]
[340828767,1729889232383,-10000.0,0.000609,120]
[340828768,1729889232402,-500.0,0.00060969,120]
[340828769,1729889232423,-299.99999901,0.0006097,2]
[340828770,1729889232444,-500.0,0.00060973,2]
[340828771,1729889232464,-500.0,0.00060973,15]
[340828772,1729889232486,-500.0,0.00060978,120]
[340828773,1729889232506,-500.0,0.00060978,120]
[340828774,1729889232535,-235.45851387,0.00060978,120]
[340828775,1729889232556,-500.0,0.00060978,120]
[340828776,1729889232575,-898.16,0.00060978,120]
[340828777,1729889232595,-500.0,0.00060978,120]
[340828778,1729889232615,-623.96,0.00060978,120]
[340828779,1729889232634,-500.0,0.00060978,120]
[340828780,1729889232654,-500.0,0.00060978,120]
[340828781,1729889232675,-444.80629886,0.00060978,120]
[340828782,1729889232695,-500.0,0.00060978,120]
[340828783,1729889232716,-500.0,0.00060978,120]
[340828784,1729889232744,-500.0,0.00060978,120]
[340828785,1729889232764,-500.0,0.00060978,120]
[340828786,1729889232783,-500.0,0.00060978,120]
[340828787,1729889232803,-500.0,0.00060978,120]
[340828788,1729889232824,-500.0,0.00060978,120]
[340828789,1729889232845,-363.48026115,0.0006098,120]
[340828790,1729889232865,-500.0,0.0006098,120]
[340828791,1729889232886,-500.0,0.0006098,2]
[340828792,1729889232905,-500.0,0.0006098,120]
[340828793,1729889232925,-482.52141491,0.0006098,120]
[340828794,1729889232946,-1000.0,0.0006098,120]
[340828795,1729889232967,-500.0,0.0006098,120]
[340828796,1729889232989,-500.0,0.0006098,120]
[340828797,1729889233008,-500.0,0.0006098,120]
[340828798,1729889233028,-217.87250387,0.0006098,120]
[340828799,1729889233049,-500.0,0.0006098,120]
[340828800,1729889233068,-500.0,0.0006098,7]
[340828801,1729889233089,-356.27,0.00060988,120]
[340828802,1729889233108,-500.0,0.00060988,120]
[340828803,1729889233128,-500.0,0.00060988,120]
[340828804,1729889233148,-898.16,0.00060988,120]
[340828805,1729889233171,-898.16,0.00060988,120]
[340828806,1729889233191,-500.0,0.00060988,120]
[340828807,1729889233211,-623.96,0.00060988,120]
[340828808,1729889233231,-623.96,0.00060988,120]
[340828809,1729889233254,-500.0,0.00060988,120]
[340828810,1729889233273,-500.0,0.00060988,120]
[340828811,1729889233292,-557.9,0.00060988,120]
[340828812,1729889233312,-500.0,0.00060988,7]
[340828813,1729889233332,-500.0,0.00060988,7]
[340828814,1729889233355,-500.0,0.00060988,120]
[340828815,1729889233376,-500.0,0.00060988,120]
[340828816,1729889233399,-500.0,0.00060988,120]
[340828817,1729889233420,-500.0,0.00060988,120]
[340828818,1729889233442,-500.0,0.00060988,120]
[340828819,1729889233464,-500.0,0.00060988,120]
[340828820,1729889233487,-513.10512176,0.00060988,120]
[340828821,1729889233508,-500.0,0.00060988,120]
[340828822,1729889233529,-500.0,0.00060988,120]
[340828823,1729889233548,-500.0,0.00060988,120]
[340828824,1729889233568,-500.0,0.00060988,120]
[340828825,1729889233589,-153.4,0.00060989,120]
[340828826,1729889233611,-7458.90244128,0.00060989,12]
[340828827,1729889244141,-500.0,0.00060133,120]
[340828828,1729889244161,-500.0,0.00060153,120]
[340828829,1729889244183,-500.0,0.00060394,120]
[340828830,1729889244203,-500.0,0.00060437,120]
[340828831,1729889244224,-500.0,0.00060899,120]
[340828832,1729889244249,-500.0,0.00060902,120]
[340828833,1729889244271,-500.0,0.00060973,2]
[340828834,1729889244292,-500.0,0.00060978,120]
[340828835,1729889244314,-14089.05819992,0.00060989,12]
[340828836,1729889244335,-503.15574307,0.00060989,120]
[340828837,1729889244358,-500.0,0.00060989,120]
[340828838,1729889244377,-500.0,0.00060989,120]
[340828839,1729889244398,-587.28722336,0.00060989,120]
[340828840,1729889244419,-500.0,0.00060989,120]
[340828841,1729889244440,-500.0,0.00060989,120]
[340828842,1729889244460,-590.74127556,0.00060989,120]
[340828843,1729889244480,-500.0,0.00060989,120]
[340828844,1729889244504,-500.0,0.00060989,120]
[340828845,1729889244523,-500.0,0.00060989,120]
[340828846,1729889244544,-500.0,0.00060989,120]
[340828847,1729889244564,-500.0,0.00060989,120]
[340828848,1729889244584,-1013.03,0.00060989,120]
[340828849,1729889244604,-500.0,0.00060989,120]
[340828850,1729889244624,-500.0,0.00060989,120]
[340828851,1729889244644,-500.0,0.00060989,120]
[340828852,1729889244665,-500.0,0.00060989,120]
[340828853,1729889244689,-500.0,0.00060989,120]
[340828854,1729889244708,-500.0,0.00060989,120]
[340828855,1729889244727,-500.0,0.00060989,120]
[340828856,1729889244751,-500.0,0.00060989,120]
[340828857,1729889244771,-556.3,0.00060989,120]
[340828858,1729889244790,-500.0,0.00060989,120]
[340828859,1729889244811,-258.35975358,0.00060989,120]
[340828860,1729889244831,-500.0,0.00060989,120]
[340828861,1729889244852,-500.0,0.00060989,120]
[340828862,1729889244873,-520.59608414,0.00060989,120]
[340828863,1729889244893,-500.0,0.00060989,21]
[340828864,1729889244913,-500.0,0.00060989,120]
[340828865,1729889244934,-500.0,0.00060989,120]
[340828866,1729889244954,-500.0,0.00060989,120]
[340828867,1729889244975,-439.37691756,0.00060989,120]
[340828868,1729889244999,-500.0,0.00060989,120]
[340828869,1729889245019,-500.0,0.00060989,120]
[340828870,1729889245040,-1001.25,0.00060989,120]
[340828871,1729889245060,-500.0,0.00060989,120]
[340828872,1729889245081,-500.0,0.00060989,120]
[340828873,1729889245102,-500.0,0.00060989,120]
[340828874,1729889245122,-500.0,0.00060989,120]
[340828875,1729889245142,-587.28673579,0.00060989,120]
[340828876,1729889245162,-500.0,0.00060989,120]
[340828877,1729889245182,-500.0,0.00060989,120]
[340828878,1729889245203,-500.0,0.00060989,120]
[340828879,1729889245223,-500.0,0.00060989,120]
[340828880,1729889245245,-500.0,0.00060989,120]
[340828881,1729889245266,-500.0,0.00060989,120]
[340828882,1729889245287,-500.0,0.00060989,120]
[340828883,1729889245307,-500.0,0.00060989,120]
[340828884,1729889245327,-500.0,0.00060989,120]
[340828885,1729889245350,-500.0,0.00060989,120]
[340828886,1729889245370,-500.0,0.00060989,120]
[340828887,1729889245391,-500.0,0.00060989,120]
[340828888,1729889245411,-500.0,0.00060989,120]
[340828889,1729889245433,-500.0,0.00060989,120]
[340828890,1729889245453,-500.0,0.00060989,120]
[340828891,1729889245478,-5242.3,0.00060989,120]
[340828892,1729889245502,-500.0,0.00060989,120]
[340828893,1729889245524,-3078.2800916,0.0006099,12]
[340828894,1729889245544,-153.4,0.0006099,120]
[340828895,1729889245566,-153.4,0.0006099,120]
[340828896,1729889245588,-24120.1914294,0.0006099,12]
[340828908,1729889432025,-535.511,0.00058,15]
[340828909,1729889432039,-314.49158686,0.00058,15]
[340828910,1729889432051,-54836.99741314,0.00058,15]
[340828911,1729889432061,-182.73,0.00060005,120]
[340828912,1729889432071,-500.0,0.00060176,120]
[340828913,1729889432080,-2110.0,0.000605,30]
[340828914,1729889432090,-315.27808748,0.00060898,2]
[340828915,1729889432100,-500.0,0.00060899,120]
[340828916,1729889432109,-500.0,0.00060899,120]
[340828917,1729889432119,-682.93038582,0.000609,2]
[340828918,1729889432129,-895.50000382,0.00060948,2]
[340828919,1729889432138,-500.0,0.00060973,2]
[340828920,1729889432148,-500.0,0.00060978,120]
[340828921,1729889432157,-500.0,0.00060978,120]
[340828922,1729889432166,-500.0,0.0006098,120]
[340828923,1729889432176,-500.0,0.00060988,120]
[340828924,1729889432185,-500.0,0.00060988,120]
[340828925,1729889432195,-500.0,0.00060988,120]
[340828926,1729889432206,-500.0,0.00060988,120]
[340828927,1729889432215,-500.0,0.00060988,120]
[340828928,1729889432225,-500.0,0.00060988,120]
[340828929,1729889432234,-500.0,0.00060989,120]
[340828930,1729889432244,-500.0,0.00060989,120]
[340828931,1729889432253,-500.0,0.00060989,120]
[340828932,1729889432263,-500.0,0.00060989,120]
[340828933,1729889432273,-500.0,0.00060989,21]
[340828934,1729889432282,-500.0,0.00060989,120]
[340828935,1729889432291,-500.0,0.00060989,120]
[340828936,1729889432300,-500.0,0.00060989,120]
[340828937,1729889432310,-959.53,0.00060989,120]
[340828938,1729889432320,-500.0,0.00060989,120]
[340828939,1729889432330,-500.0,0.00060989,120]
[340828940,1729889432339,-500.0,0.00060989,120]
[340828941,1729889432349,-500.0,0.00060989,120]
[340828942,1729889432359,-500.0,0.00060989,120]
[340828943,1729889432368,-500.0,0.00060989,120]
[340828944,1729889432378,-500.0,0.00060989,120]
[340828946,1729889432387,-500.0,0.00060989,120]
[340828947,1729889432397,-500.0,0.00060989,4]
[340828949,1729889432406,-500.0,0.00060989,120]
[340828951,1729889432416,-500.0,0.00060989,120]
[340828953,1729889432426,-500.0,0.00060989,120]
[340828955,1729889432435,-500.0,0.00060989,120]
[340828957,1729889432445,-500.0,0.00060989,120]
[340828959,1729889432457,-500.0,0.00060989,120]
[340828961,1729889432469,-731.83391779,0.00060989,120]
[340828963,1729889432481,-238.98608221,0.00060989,120]
[340828965,1729889432491,-500.0,0.00060989,120]
[340828967,1729889432501,-446.40391779,0.00060989,120]
[340828969,1729889432513,-53.59608221,0.00060989,120]
[340828971,1729889432525,-500.0,0.00060989,120]
[340828974,1729889432534,-748.47,0.00060989,120]
[340828976,1729889432544,-2188.65547185,0.0006099,14]
[340828978,1729889432559,-1041.76047077,0.0006099,14]
[340828980,1729889432572,-2175.883476,0.0006099,14]
[340828983,1729889432583,-3010.06105739,0.0006099,14]
[340828985,1729889432596,-16688.000013,0.0006099,14]
[340828986,1729889432608,-2375.16069498,0.0006099,14]
[340828988,1729889432619,-3094.2,0.0006099,14]
[340828991,1729889432631,-6023.72737881,0.0006099,14]
[340828993,1729889432643,-6674.23832769,0.0006099,14]
[340828995,1729889432654,-4796.58478385,0.0006099,14]
[340828997,1729889432665,-6094.48352013,0.0006099,14]
[340828999,1729889432677,-652.391293,0.0006099,14]
[340829002,1729889432689,-388.88750137,0.0006099,14]
[340829004,1729889432700,-2031.64228295,0.0006099,14]
[340829005,1729889432715,-15017.14106049,0.0006099,14]
[340829006,1729889432726,-3358.48242162,0.0006099,14]
[340829007,1729889432738,-397.92779334,0.0006099,14]
[340829008,1729889432749,-610.42787484,0.0006099,14]
[340829009,1729889432761,-5023.54568336,0.0006099,14]
[340829010,1729889432772,-16949.07704085,0.0006099,14]
[340829011,1729889432783,-3254.0,0.0006099,14]
[340829022,1729889439208,-319.70263525,0.00060899,120]
[340829023,1729889439219,-10000.0,0.000609,120]
[340829024,1729889439230,-7161.69211971,0.0006099,14]
[340829025,1729889439241,-37181.92678602,0.0006099,12]
[340829028,1729889440012,-8877.11260508,0.0006099,12]
[340829029,1729889440023,-2281.212458,0.0006099,12]
[340829030,1729889440042,-519.96,0.00060989,120]
[340829031,1729889440051,-164830.1832189,0.0006099,12]
[340829032,1729889440060,-153.4,0.0006099,120]
[340829033,1729889440070,-153.4,0.0006099,120]
[340829034,1729889440079,-500.0,0.00060997,120]
[340829035,1729889440088,-633.52,0.00060997,120]
[340829036,1729889440098,-500.0,0.00060997,120]
[340829037,1729889440107,-748.47,0.00060997,120]
[340829038,1729889440116,-321.14692041,0.00060998,120]
[340829039,1729889440125,-340.78547134,0.00060998,120]
[340829040,1729889440134,-375.0,0.00060998,14]
[340829041,1729889440143,-500.0,0.00060998,120]
[340829042,1729889440152,-507.08,0.00060998,7]
[340829043,1729889440163,-500.0,0.00060998,120]
[340829044,1729889440172,-534.95,0.00060998,120]
[340829045,1729889440181,-500.0,0.00060998,120]
[340829046,1729889440190,-500.0,0.00060998,120]
[340829047,1729889440199,-500.0,0.00060998,120]
[340829048,1729889440208,-500.0,0.00060998,120]
[340829049,1729889440217,-500.0,0.00060998,120]
[340829050,1729889440226,-500.0,0.00060998,120]
[340829051,1729889440235,-5242.3,0.00060998,120]
[340829052,1729889440244,-500.0,0.00060998,120]
[340829053,1729889440253,-500.0,0.00060998,120]
[340829054,1729889440262,-500.0,0.00060998,120]
[340829055,1729889440271,-500.0,0.00060998,120]
[340829056,1729889440280,-500.0,0.00060998,21]
[340829057,1729889440289,-500.0,0.00060998,120]
[340829058,1729889440298,-500.0,0.00060998,120]
[340829059,1729889440307,-959.53,0.00060998,120]
[340829060,1729889440316,-500.0,0.00060998,120]
[340829061,1729889440325,-225.96263111,0.00060998,120]
[340829062,1729889440335,-218.81540517,0.00060998,120]
[340829063,1729889440344,-500.0,0.00060998,120]
[340829064,1729889440356,-500.0,0.00060998,120]
[340829065,1729889440365,-500.0,0.00060998,120]
[340829066,1729889440375,-500.0,0.00060998,120]
[340829067,1729889440385,-500.0,0.00060998,4]
[340829068,1729889440396,-500.0,0.00060998,120]
[340829069,1729889440405,-500.0,0.00060998,120]
[340829070,1729889440415,-500.0,0.00060998,120]
[340829071,1729889440425,-500.0,0.00060998,120]
[340829072,1729889440435,-529.41307071,0.00060998,120]
[340829073,1729889440445,-500.0,0.00060998,120]
[340829074,1729889440455,-970.82,0.00060998,120]
[340829075,1729889440464,-500.0,0.00060998,120]
[340829076,1729889440473,-224.99376734,0.00060999,31]
[340829077,1729889440482,-503.69097015,0.00060999,120]
[340829078,1729889440491,-4376.9852742,0.00060999,120]
[340829079,1729889440500,-1000.0,0.00060999,2]
[340829080,1729889440509,-1000.0,0.00060999,2]
[340829081,1729889440521,-1000.0,0.00060999,2]
[340829083,1729889440530,-1000.0,0.00060999,2]
[340829084,1729889440539,-1000.0,0.00060999,2]
[340829086,1729889440548,-1000.0,0.00060999,2]
[340829087,1729889440558,-1000.0,0.00060999,2]
[340829088,1729889440567,-1000.0,0.00060999,2]
[340829089,1729889440576,-1000.0,0.00060999,2]
[340829090,1729889440585,-1000.0,0.00060999,2]
[340829091,1729889440596,-1000.0,0.00060999,2]
[340829092,1729889440605,-1000.0,0.00060999,2]
[340829093,1729889440614,-1000.0,0.00060999,2]
[340829094,1729889440623,-1000.0,0.00060999,2]
[340829095,1729889440632,-1000.0,0.00060999,2]
[340829096,1729889440640,-1000.0,0.00060999,2]
[340829097,1729889440649,-1000.0,0.00060999,2]
[340829098,1729889440658,-1000.0,0.00060999,2]
[340829099,1729889440667,-1000.0,0.00060999,2]
[340829100,1729889440676,-1000.0,0.00060999,2]
[340829101,1729889440686,-1000.0,0.00060999,2]
[340829102,1729889440695,-1000.0,0.00060999,2]
[340829103,1729889440704,-1000.0,0.00060999,2]
[340829104,1729889440713,-1000.0,0.00060999,2]
[340829105,1729889440723,-1000.0,0.00060999,2]
[340829106,1729889440732,-1000.0,0.00060999,2]
[340829107,1729889440740,-1000.0,0.00060999,2]
[340829108,1729889440749,-1000.0,0.00060999,2]
[340829109,1729889440758,-1000.0,0.00060999,2]
[340829110,1729889440767,-1000.0,0.00060999,2]
[340829111,1729889440776,-1000.0,0.00060999,2]
[340829112,1729889440785,-957.83501541,0.00060999,2]
[340829113,1729889440794,-500.0,0.00060999,120]
[340829114,1729889440803,-580.37722793,0.00060999,120]
[340829115,1729889440811,-536.14,0.00060999,120]
[340829116,1729889440820,-452.16106077,0.00060999,120]
[340829117,1729889440829,-500.0,0.00060999,120]
[340829118,1729889440838,-500.0,0.00060999,120]
[340829119,1729889440847,-500.0,0.00060999,120]
[340829120,1729889440855,-500.0,0.00060999,120]
[340829121,1729889440864,-500.0,0.00060999,120]
[340829122,1729889440873,-645.76754198,0.00060999,120]
[340829123,1729889440882,-500.0,0.00060999,120]
[340829124,1729889440892,-500.0,0.00060999,120]
[340829125,1729889440901,-500.0,0.00060999,120]
[340829126,1729889440910,-500.0,0.00060999,120]
[340829127,1729889440919,-500.0,0.00060999,120]
[340829128,1729889440929,-500.0,0.00060999,120]
[340829129,1729889440938,-500.0,0.00060999,120]
[340829130,1729889440948,-500.0,0.00060999,120]
[340829131,1729889440958,-500.0,0.00060999,120]
[340829132,1729889440968,-500.0,0.00060999,120]
[340829133,1729889440977,-224.88,0.00060999,120]
[340829134,1729889440986,-500.0,0.00060999,120]
[340829135,1729889440995,-5242.3,0.00060999,120]
[340829136,1729889441004,-5242.3,0.00060999,120]
[340829137,1729889441014,-5242.3,0.00060999,120]
[340829138,1729889441023,-5242.3,0.00060999,120]
[340829139,1729889441032,-5242.3,0.00060999,120]
[340829140,1729889441042,-5242.3,0.00060999,120]
[340829141,1729889441051,-5242.3,0.00060999,120]
[340829142,1729889441061,-5242.3,0.00060999,120]
[340829143,1729889441070,-562.91,0.00060999,120]
[340829144,1729889441079,-500.0,0.00060999,120]
[340829145,1729889441089,-500.0,0.00060999,120]
[340829146,1729889441098,-500.0,0.00060999,120]
[340829147,1729889441107,-500.0,0.00060999,120]
[340829148,1729889441116,-500.0,0.00060999,120]
[340829149,1729889441126,-500.0,0.00060999,120]
[340829150,1729889441135,-554.98681168,0.00060999,120]
[340829151,1729889441144,-500.0,0.00060999,120]
[340829152,1729889441154,-500.0,0.00060999,120]
[340829153,1729889441163,-500.0,0.00060999,120]
[340829154,1729889441172,-500.0,0.00060999,120]
[340829155,1729889441181,-500.0,0.00060999,120]
[340829156,1729889441190,-500.0,0.00060999,120]
[340829157,1729889441199,-309.12588127,0.00060999,120]
[340829158,1729889441209,-500.0,0.00060999,120]
[340829159,1729889441218,-500.0,0.00060999,120]
[340829160,1729889441227,-500.0,0.00060999,120]
[340829161,1729889441235,-500.0,0.00060999,120]
[340829162,1729889441244,-597.55,0.00060999,120]
[340829163,1729889441254,-500.0,0.00060999,120]
[340829164,1729889441263,-500.0,0.00060999,120]
[340829165,1729889441272,-500.0,0.00060999,120]
[340829166,1729889441281,-500.0,0.00060999,120]
[340829167,1729889441290,-500.0,0.00060999,120]
[340829168,1729889441299,-500.0,0.00060999,120]
[340829169,1729889441308,-501.84098822,0.00060999,120]
[340829170,1729889441317,-959.53,0.00060999,120]
[340829171,1729889441326,-959.53,0.00060999,120]
[340829172,1729889441335,-959.53,0.00060999,120]
[340829173,1729889441345,-959.53,0.00060999,120]
[340829174,1729889441354,-959.53,0.00060999,120]
[340829175,1729889441363,-959.53,0.00060999,120]
[340829176,1729889441373,-959.53,0.00060999,120]
[340829177,1729889441382,-959.53,0.00060999,120]
[340829178,1729889441391,-500.0,0.00060999,120]
[340829179,1729889441400,-242.87269637,0.00060999,120]
[340829180,1729889441409,-500.0,0.00060999,120]
[340829181,1729889441418,-500.0,0.00060999,120]
[340829182,1729889441427,-500.0,0.00060999,120]
[340829183,1729889441436,-500.0,0.00060999,120]
[340829184,1729889441445,-506.36936258,0.00060999,120]
[340829185,1729889441456,-500.0,0.00060999,4]
[340829186,1729889441465,-500.0,0.00060999,4]
[340829187,1729889441474,-500.0,0.00060999,4]
[340829188,1729889441484,-500.0,0.00060999,4]
[340829189,1729889441493,-500.0,0.00060999,4]
[340829190,1729889441503,-168.1831,0.00060999,4]
[340829191,1729889441514,-500.0,0.00060999,120]
[340829192,1729889441526,-500.0,0.00060999,120]
[340829193,1729889441536,-500.0,0.00060999,120]
[340829194,1729889441547,-500.0,0.00060999,120]
[340829195,1729889441558,-500.0,0.00060999,120]
[340829196,1729889441567,-500.0,0.00060999,120]
[340829197,1729889441575,-500.0,0.00060999,120]
[340829198,1729889441585,-500.0,0.00060999,120]
[340829199,1729889441597,-500.0,0.00060999,120]
[340829200,1729889441606,-500.0,0.00060999,120]
[340829201,1729889441615,-500.0,0.00060999,120]
[340829202,1729889441624,-500.0,0.00060999,120]
[340829203,1729889441633,-500.0,0.00060999,120]
[340829204,1729889441642,-500.0,0.00060999,120]
[340829205,1729889441651,-500.0,0.00060999,120]
[340829206,1729889441659,-500.0,0.00060999,120]
[340829207,1729889441668,-500.0,0.00060999,120]
[340829208,1729889441678,-150.0,0.00060999,120]
[340829209,1729889441687,-150.0,0.00060999,120]
[340829210,1729889441695,-500.0,0.00060999,120]
[340829211,1729889441705,-500.0,0.00060999,120]
[340829212,1729889441714,-500.0,0.00060999,120]
[340829213,1729889441723,-500.0,0.00060999,120]
[340829214,1729889441732,-500.0,0.00060999,120]
[340829215,1729889441740,-500.0,0.00060999,120]
[340829216,1729889441749,-970.82,0.00060999,120]
[340829217,1729889441758,-500.0,0.00060999,120]
[340829218,1729889441768,-970.82,0.00060999,120]
[340829219,1729889441777,-970.82,0.00060999,120]
[340829220,1729889441786,-500.0,0.00060999,120]
[340829221,1729889441795,-970.82,0.00060999,120]
[340829222,1729889441804,-970.82,0.00060999,120]
[340829223,1729889441813,-970.82,0.00060999,120]
[340829224,1729889441822,-970.82,0.00060999,120]
[340829225,1729889441831,-970.82,0.00060999,120]
[340829226,1729889441840,-500.0,0.00060999,120]
[340829227,1729889441848,-218.49809557,0.00060999,120]
[340829228,1729889441858,-748.47,0.00060999,120]
[340829229,1729889441867,-748.47,0.00060999,120]
[340829230,1729889441876,-748.47,0.00060999,120]
[340829231,1729889441885,-748.47,0.00060999,120]
[340829232,1729889441894,-748.47,0.00060999,120]
[340829233,1729889441904,-748.47,0.00060999,120]
[340829234,1729889441913,-748.47,0.00060999,120]
[340829235,1729889441922,-748.47,0.00060999,120]
[340829236,1729889441931,-748.47,0.00060999,120]
[340829237,1729889441940,-2416.00776758,0.00061,60]
[340829238,1729889441949,-4244.44962533,0.00061,64]
[340829239,1729889441960,-1000.0,0.00061,120]
[340829240,1729889441969,-66578.67216699,0.00061,120]
[340829241,1729889442059,-500.0,0.00060989,120]
[340829242,1729889442068,-492.93296898,0.00060998,120]
[340829247,1729889443258,-27.02703102,0.00060998,120]
[340829248,1729889443268,-500.0,0.00060998,120]
[340829249,1729889443277,-519.96,0.00060999,120]
[340829250,1729889443286,-519.96,0.00060999,120]
[340829251,1729889443295,-519.96,0.00060999,120]
[340829252,1729889443304,-519.96,0.00060999,120]
[340829253,1729889443313,-519.96,0.00060999,120]
[340829254,1729889443322,-519.96,0.00060999,120]
[340829255,1729889443332,-519.96,0.00060999,120]
[340829256,1729889443341,-519.96,0.00060999,120]
[340829257,1729889443350,-519.96,0.00060999,120]
[340829258,1729889443359,-7799.08297033,0.00061,120]
[340829267,1729889446055,-2022.6455445,0.00061,120]
[340829268,1729889446067,-488.53388344,0.00061,120]
[340829269,1729889446147,-370.42779426,0.00061,120]
[340829270,1729889446222,-6897.23942815,0.00061,120]
[340829275,1729890155701,-200.81028852,0.00032877,2]
[340829276,1729890155723,-1141.78399786,0.00034849,120]
[340829277,1729890155744,-209.74676187,0.00036822,2]
[340829278,1729890155764,-158.06,0.00038723,2]
[340829280,1729890554101,-201.043865,0.000547,99]
[340829281,1729890554408,1000.0,0.000547,99]
[340829290,1729890632248,-334.92760307,0.00057326,2]
[340829291,1729890632257,-1418.80893032,0.00057326,2]
[340829292,1729890632266,-619.09,0.00057426,2]
[340829293,1729890632276,-781.9,0.00059115,2]
[340829294,1729890632285,-2470.77,0.00059115,2]
[340829295,1729890632295,-23890.0,0.00059141,2]
[340829296,1729890632305,-995.0,0.00059243,2]
[340829297,1729890632315,-774.16,0.00059254,30]
[340829298,1729890632324,-7790.9892696,0.00059254,2]
[340829299,1729890632413,-1036.0807304,0.00059254,2]
[340829300,1729890632422,-799.47,0.00059254,2]
[340829301,1729890632431,-150.99,0.00059254,2]
[340829302,1729890632440,-152.72,0.00059256,2]
[340829303,1729890632450,-1000.0,0.00059293,120]
[340829304,1729890632460,-150.0,0.00059303,2]
[340829305,1729890632469,-164.5,0.00059343,2]
[340829306,1729890632478,-302.38,0.00059348,10]
[340829307,1729890632487,-157.0,0.00059374,2]
[340829308,1729890632496,-179.6,0.00059396,120]
[340829309,1729890632505,-151.08,0.00059467,2]
[340829310,1729890632514,-500.0,0.00059545,7]
[340829311,1729890632523,-41123.22,0.00059545,2]
[340829313,1729890632532,-461.36,0.00059614,2]
[340829315,1729890632541,-151.08,0.00059616,2]
[340829317,1729890632549,-250.0,0.00059677,120]
[340829319,1729890632558,-619.09,0.0005969,2]
[340829321,1729890632567,-151.08,0.00059764,2]
[340829323,1729890632576,-1758.87,0.00059831,2]
[340829325,1729890632585,-703.0,0.0006,4]
[340829327,1729890632594,-10000.0,0.0006,90]
[340829328,1729890632603,-228.744,0.00060101,120]
[340829330,1729890632612,-5884.0,0.00060101,120]
[340829332,1729890632621,-530.42,0.00060101,120]
[340829334,1729890632630,-152.0,0.00060153,3]
[340829336,1729890632639,-370.0,0.000603,13]
[340829338,1729890632648,-5560.82163412,0.0006039,2]
[340829340,1729890632656,-265.26767371,0.00060481,7]
[340829342,1729890632665,-150.0,0.00060548,120]
[340829344,1729890632674,-300.0,0.000607,2]
[340829346,1729890632683,-3468.980709,0.000608,2]
[340829348,1729890632692,-1221.09691563,0.000608,15]
[340829350,1729890632701,-44194.8003,0.000608,2]
[340829352,1729890632710,-615.4,0.0006089,30]
[340829354,1729890632719,-197.09470596,0.00060898,28]
[340829356,1729890632728,-2036.3579,0.00060899,2]
[340829358,1729890632737,-34163.2763,0.00060899,2]
[340829359,1729890632746,-211.33929593,0.00060899,32]
[340829360,1729890632755,-3697.96148314,0.000609,120]